Cogmind - Beta 14 @@@ ROGUE MODE // 2025.03.26 @ 14:06:10 Player: SelfCookedBird Result: Destroyed by G-34 Mercenary with Small Laser Performance ------------- Evolutions (1) 500 Regions Visited (3) 600 Robots Destroyed (46) 230 Value Destroyed (1253) 1253 Prototype IDs (0) 0 Alien Tech Used (0) 0 Bonus (54) 54 TOTAL SCORE: 2637 Bonus ------- High Alert Combat Kills 54 Cogmind --------- Core Integrity 0/400 Matter 147/300 Energy 100/100 System Corruption 0% Temperature Cool (6) Movement Core (400) Ox7 Location -9/Materials Parts ------- > --- POWER (1) -------- (None) > --- PROPULSION (4) --- (None) > --- UTILITY (2) ------ Large Storage Unit Signal Interpreter > --- WEAPON (2) ------- Scythe > --- INVENTORY (15) --- Improved Ion Engine Cooling System Medium Storage Unit Large Storage Unit Huge Storage Unit Compact Battery (200) Compact Matter Pod (150) Actuator Array Light Armor Plating Heavy Assault Rifle Heavy Assault Rifle EMP Blaster Datajack Peak State ------------ > --- POWER ------------ Light Nuclear Core > --- PROPULSION ------- Aluminum Leg Aluminum Leg Aluminum Leg Aluminum Leg > --- UTILITY ---------- Small Storage Unit Signal Interpreter > --- WEAPON ----------- Shock Rifle Scythe > --- INVENTORY -------- Compact Battery Compact Matter Pod Actuator Array Assault Rifle Grenade Launcher Datajack [Rating: 16] Favorites ----------- Power Ion Engine Engine Ion Engine Power Core Light Nuclear Core Propulsion Aluminum Leg Treads Light Treads Leg Aluminum Leg Utility Small Storage Unit Device Terrain Scanner Storage Small Storage Unit Processor Signal Interpreter Weapon Scythe Energy Gun Shock Rifle Ballistic Gun Assault Rifle Launcher Grenade Launcher Slashing Weapon Scythe Special Melee Weapon Datajack Build | -11 -10 -10 -9 ------- Run | Yrd Mat Min Mat Slots Evolved 2 | . . . 2 Power . | . . . . Propulsion 2 | . . . 2 Utility . | . . . . Weapon . | . . . . Parts Attached 44 | 6 9 7 22 Power 9 | 1 2 1 5 Engine 7 | 1 2 . 4 Core 2 | . . 1 1 Reactor . | . . . . Propulsion 13 | 2 2 2 7 Treads 1 | . . . 1 Leg 12 | 2 2 2 6 Wheel . | . . . . Hover . | . . . . Flight . | . . . . Utility 10 | 1 2 1 6 Device 2 | . 2 . . Storage 7 | 1 . . 6 Processor 1 | . . 1 . Hackware . | . . . . Protection . | . . . . Artifact . | . . . . Weapon 12 | 2 3 3 4 Energy Gun 3 | 1 1 1 . Energy Cannon . | . . . . Ballistic Gun 2 | 1 . 1 . Ballistic Cannon . | . . . . Launcher 5 | . 1 . 4 Special Weapon . | . . . . Impact Weapon . | . . . . Slashing Weapon 1 | . . 1 . Piercing Weapon . | . . . . Special Melee Weapon 1 | . 1 . . Unidentified Prototypes . | . . . . Parts Lost 17 | . 2 2 13 Power 3 | . 1 . 2 Propulsion 8 | . . 1 7 Utility 2 | . 1 1 . Weapon 4 | . . . 4 Highest Loss Streak 6 | . 1 2 6 To Critical Strikes . | . . . . Average Slot Usage (%) 95 | . 94 98 95 Engine 9 | . 13 11 6 Core 1 | . . 2 2 Leg 32 | . 28 27 40 Device 3 | . 9 1 . Storage 12 | . 14 14 11 Processor 8 | . . 11 11 Energy Gun 5 | . 3 9 3 Ballistic Gun 3 | . 10 2 . Launcher 6 | . 10 1 7 Slashing Weapon 7 | . . 9 11 Special Melee Weapon 2 | . 3 4 . Peak Build Rating 16 | 6 7 14 16 Average Rating 10 | 4 6 10 13 On Entrance 6 | . 6 7 14 Naked Turns . | . . . . Heaviest Build 33 | 13 16 15 33 Greatest Support 43 | 20 20 20 43 Greatest Overweight (x) 1 | . . 1 1 Average Overweight (x) . | . . . . Largest Inventory Capacity 25 | 8 8 8 25 Average Capacity 8 | 6 8 8 10 Most Carried 14 | 6 8 8 14 Average Carried 8 | 4 7 7 9 Final Capacity 15 | 8 8 8 15 Final Carried 13 | 6 7 8 13 Class Distribution -------------------- 60% | Mutant 39% | Scavenger-Mutant Dominant Class ---------------- Mutant | -10/Materials Mutant | -10/Mines Scavenger-Mutant | -9/Materials Resources | -11 -10 -10 -9 ----------- Run | Yrd Mat Min Mat Matter Collected 1211 | 163 495 261 292 Remotely . | . . . . Salvage Created 1149 | . 513 146 490 Parts 81 | . 35 8 38 Haulers Intercepted 1 | . . . 1 Recyclers Shooed 2 | . 1 1 . Parts Field Recycled . | . . . . Retrieved Matter . | . . . . Parts Self-Destructed . | . . . . Prevented . | . . . . Kills | -11 -10 -10 -9 ------- Run | Yrd Mat Min Mat Combat Hostiles Destroyed 35 | . 16 5 14 Melee 5 | . . 1 4 Guns 9 | . 4 4 1 AOE 21 | . 12 . 9 Classes Destroyed 10 | . 7 . 3 Worker 2 | . 1 . 1 Builder 1 | . 1 . . Tunneler 1 | . . . 1 Hauler 1 | . . . 1 Recycler 1 | . 1 . . Operator 2 | . 1 . 1 Watcher 3 | . 1 . 2 Swarmer 9 | . 3 3 3 Grunt 21 | . 13 2 6 Sentry 5 | . . . 5 Best Kill Streak 8 | . 6 3 8 Combat Bots Only 4 | . 3 3 4 Max Kills in Single Turn 2 | . 2 1 2 Gunslinging . | . . . . Exploded 2 | . 2 . 1 Melee 1 | . . 1 1 Uniques/NPCs Destroyed . | . . . . Combat | -11 -10 -10 -9 -------- Run | Yrd Mat Min Mat Hostile Shots Fired 236 | . 47 41 148 Missed 82 | . 11 18 53 Damage Taken 2300 | . 564 195 1541 Core 556 | . 107 46 403 Absorbed by Shields . | . . . . Core Remaining (%) 69 | 100 . 38 . Volleys Fired 93 | . 39 20 34 Largest 2 | . 2 1 1 Hottest 60 | . 60 50 50 Shots Fired 115 | . 61 20 34 Gun 65 | . 37 20 8 Cannon . | . . . . Launcher 50 | . 24 . 26 Special . | . . . . Kinetic 44 | . 27 17 . Thermal 1 | . 1 . . Explosive 50 | . 24 . 26 Electromagnetic 20 | . 9 3 8 Robot Hit Streak 9 | . 9 4 4 Robot Miss Streak 5 | . 5 5 3 Penetration Max . | . . . . Secondary Targets 1 | . 1 . . Max Gunslinging Chain 1 | . 1 . . Shots Hit Robots 72 | . 32 10 30 Core Hits 76 | . 38 5 33 Critical Kills . | . . . . Critical Parts Destroyed . | . . . . Critical Strikes . | . . . . Melee Attacks 23 | . 1 2 20 Impact . | . . . . Slashing 21 | . . 1 20 Piercing . | . . . . Sneak Attacks 1 | . . . 1 Combat Hostiles . | . . . . Follow-up Attacks . | . . . . Damage Inflicted 3241 | . 1459 157 1625 Guns 483 | . 265 124 94 Cannons . | . . . . Explosions 2251 | . 1193 . 1058 Melee 506 | . . 33 473 Ramming 1 | . 1 . . Kinetic 276 | . 170 106 . Thermal . | . . . . Explosive 2251 | . 1193 . 1058 Electromagnetic 207 | . 95 18 94 Impact . | . . . . Slashing 506 | . . 33 473 Piercing . | . . . . Highest Corruption . | . . . . Average Corruption . | . . . . Corruption Purged . | . . . . Corruption Blocked . | . . . . Overload Shots . | . . . . Overflow Damage 79 | . 24 . 55 Projectiles . | . . . . Explosions 69 | . 24 . 45 Melee 10 | . . . 10 Knockbacks . | . . . . Impact . | . . . . Kinetic . | . . . . Secondary . | . . . . Self-Inflicted Damage 427 | . 168 . 259 Shots 14 | . 6 . 8 Rammed . | . . . . Targets Rammed 1 | . 1 . . Kicked 1 | . 1 . . Crushed . | . . . . Highest Temperature 72 | . 72 35 36 Average Temperature 17 | . 23 15 11 Received Heat Transfer 642 | . 198 15 429 Siege Activations . | . . . . Robots Corrupted . | . . . . Combat Hostiles . | . . . . Parts Fried . | . . . . Impact Corruptions . | . . . . Robots Melted . | . . . . Combat Hostiles . | . . . . Parts Melted . | . . . . Heat Transferred . | . . . . Parts Sabotaged . | . . . . Parts Stolen . | . . . . Parts Stripped . | . . . . Power Chain Reactions . | . . . . Alert | -11 -10 -10 -9 ------- Run | Yrd Mat Min Mat Peak Influence 557 | . 467 173 557 Initial 123 | . . 123 . Average 117 | . 162 78 120 Maximum Alert Level 2 | . 2 . 2 Low Security (%) 79 | 100 59 100 77 Level 1 13 | . 37 . 8 Level 2 6 | . 3 . 14 Level 3 . | . . . . Level 4 . | . . . . Level 5 . | . . . . High Security . | . . . . Max Security . | . . . . Squads Dispatched 7 | . 3 1 3 Investigation 6 | . 3 1 2 Extermination . | . . . . Reinforcement . | . . . . Assault 1 | . . . 1 Garrison . | . . . . Intercept . | . . . . Searches Triggered . | . . . . Construction Impeded . | . . . . Haulers Reinforced . | . . . . Active Scanning Responses . | . . . . Cargo Convoy Interrupts . | . . . . Stealth | -11 -10 -10 -9 --------- Run | Yrd Mat Min Mat Distress Signals 3 | . . . 3 Communications Jammed . | . . . . Distress Signals . | . . . . Times Spotted 58 | . 23 5 30 Peak Tracking Total 7 | . 5 3 7 Tactical Retreats 3 | . 3 . . Traps | -11 -10 -10 -9 ------- Run | Yrd Mat Min Mat Traps Triggered 3 | . 3 . . Indirectly . | . . . . Trap Hack Attempts . | . . . . Triggered . | . . . . Disarmed . | . . . . Reprogrammed . | . . . . Reused . | . . . . Traps Extracted . | . . . . Installed . | . . . . Triggered . | . . . . Machines | -11 -10 -10 -9 ---------- Run | Yrd Mat Min Mat Machines Disabled 7 | . 2 . 5 Max in Single Turn 2 | . 1 . 2 Machines Repaired . | . . . . Machines Dismantled . | . . . . Machines Sabotaged . | . . . . Overloaded Fab Kills . | . . . . Hacking | -11 -10 -10 -9 --------- Run | Yrd Mat Min Mat Machines Accessed 10 | . 2 1 7 Terminals 8 | . 2 . 6 Fabricators . | . . . . Repair Stations 1 | . . . 1 Recycling Units . | . . . . Scanalyzers . | . . . . Garrison Access . | . . . . Total Hacks 21 | . 4 1 16 Successful 11 | . 3 1 7 Failed 10 | . 1 . 9 Catastrophic 2 | . . . 2 Database Lockouts . | . . . . Manual 5 | . 1 . 4 Terminals 17 | . 4 . 13 Fabricators . | . . . . Repair Stations 3 | . . . 3 Recycling Units . | . . . . Scanalyzers . | . . . . Garrison Access . | . . . . Terminal Hacks 10 | . 3 1 6 Record 6 | . 2 . 4 Open Door 1 | . . 1 . Branch Access Points 1 | . 1 . . Hauler Manifests 1 | . . . 1 Zone Layout 1 | . . . 1 Fabricator Hacks . | . . . . Repair Station Hacks 1 | . . . 1 Scan Component 1 | . . . 1 Recycling Unit Hacks . | . . . . Scanalyzer . | . . . . Garrison Access Hacks . | . . . . Unauthorized Hacks . | . . . . Terminals . | . . . . Fabricators . | . . . . Repair Stations . | . . . . Recycling Units . | . . . . Scanalyzers . | . . . . Garrison Access . | . . . . Data Cores Recovered 2 | . 1 . 1 Used . | . . . . Hacking Detections 2 | . . . 2 Full Trace Events 1 | . . . 1 Feedback Events . | . . . . Feedback Blocked . | . . . . Robot Schematics Acquired . | . . . . Robots Built . | . . . . Authchips . | . . . . Time . | . . . . Total Robot Build Rating . | . . . . Part Schematics Acquired . | . . . . Parts Built . | . . . . Authchips . | . . . . Time . | . . . . Total Part Build Rating . | . . . . Parts Repaired . | . . . . Time . | . . . . Parts Recycled . | . . . . Recycled Matter . | . . . . Retrieved Matter . | . . . . Retrieved Components . | . . . . Parts Scanalyzed . | . . . . Part Schematics Acquired . | . . . . Parts Damaged . | . . . . Bothacking | -11 -10 -10 -9 ------------ Run | Yrd Mat Min Mat Used RIF Installer . | . . . . Robots Hacked . | . . . . Non-combat . | . . . . Combat . | . . . . Robot Hacks Applied . | . . . . Relay Couplers Released . | . . . . Fabnet Peak Effective % . | . . . . Robots Rewired . | . . . . Allies Hacked . | . . . . Hacks Repelled . | . . . . Allies | -11 -10 -10 -9 -------- Run | Yrd Mat Min Mat Total Allies . | . . . . Largest Group . | . . . . Highest-Rated Group . | . . . . Highest-Rated Ally . | . . . . Total Orders . | . . . . Ally Attacks . | . . . . Total Damage . | . . . . Kills . | . . . . Allies Corrupted . | . . . . Allies Melted . | . . . . Intel | -11 -10 -10 -9 ------- Run | Yrd Mat Min Mat Robot Analysis Total . | . . . . Derelict Logs Recovered 2 | . . 2 . Drone Launches . | . . . . Drone Recoveries . | . . . . Exploration | -11 -10 -10 -9 ------------- Run | Yrd Mat Min Mat Turns Passed 3087 | 76 864 888 1259 Spaces Moved 2056 | 57 608 668 723 Core 9 | 9 . . . Treads . | . . . . Legs 2047 | 48 608 668 723 Wheels . | . . . . Hover . | . . . . Flight . | . . . . Fastest Speed 50 | 50 120 120 120 Average Speed 123 | 108 120 120 129 Slowest Speed 190 | 120 120 190 190 Overloaded Moves . | . . . . Propulsion Burnouts . | . . . . Robots Hopped . | . . . . Cave-ins Triggered . | . . . . Exploration Rate (%) 55 | 4 81 91 44 Regions Visited 3 Branch Regions 1 Pre-discovered Areas 1 | . . 1 . Known Exits Taken 2 | . 1 1 . Unknown Exits Taken 1 | 1 . . . Scrap Searched 1 | . . 1 . Spaces Dug . | . . . . Terrain Destroyed 358 | . 149 . 209 Melee . | . . . . Projectile . | . . . . AOE 358 | . 149 . 209 Terrain Rammed . | . . . . Walls Destroyed . | . . . . Machines Disabled . | . . . . Actions | -11 -10 -10 -9 --------- Run | Yrd Mat Min Mat Total 2456 | 68 681 729 978 Wait 185 | . 10 16 159 Move 2053 | 56 607 667 723 Hop . | . . . . Pick Up 33 | 6 7 9 11 Fast Attach 12 | 6 2 . 4 Attach 8 | . 1 2 5 Detach . | . . . . Swap 24 | . 6 5 13 Drop 24 | . 7 8 9 Fire 93 | . 39 20 34 Melee 23 | . 1 2 20 Ram . | . . . . Kick 1 | . 1 . . Crush . | . . . . Escape Stasis . | . . . . Rewire . | . . . . Trap . | . . . . Miscellaneous . | . . . . Route ------- -11/Scrapyard -10/Materials (discovered 3 exits: *Mat x2 / *Min) -10/Mines (discovered 2 exits: *Mat x2) -9/Materials History --------- Turn | Location | Event 7 | -11/Scrapyard | Discovered new exit (range 14) 77 | -11/Scrapyard | Entered Materials 316 | -10/Materials | Build established: Mutant 414 | -10/Materials | Discovered new exit (range 12) 510 | -10/Materials | Discovered new exit (range 11) 733 | -10/Materials | Identified exit to Mines 941 | -10/Materials | Entered Mines 951 | -10/Mines | Learned location of Zion (-7) 1005 | -10/Mines | Met a Derelict bent on vengeance 1027 | -10/Mines | Discovered new exit (range 6) 1045 | -10/Mines | Core integrity fell below 50% 1093 | -10/Mines | Identified exit to Materials 1187 | -10/Mines | Met a Derelict shopkeep closing up shop 1283 | -10/Mines | Learned Materials trap positions 1288 | -10/Mines | Discovered exit to Materials (range 3) 1829 | -10/Mines | Entered Materials 1829 | -9/Materials | Evolved 2 slots: Propulsion x2 1830 | -9/Materials | Loaded intel: 15 trap records 2127 | -9/Materials | Build established: Scavenger-Mutant 3029 | -9/Materials | First assault squad dispatched 3068 | -9/Materials | Core integrity fell below 50% 3086 | -9/Materials | Core integrity fell below 20% 3088 | -9/Materials | Destroyed by G-34 Mercenary with Small Laser Last Messages --------------- 03035_ K-01 Serf cleans the Terminal. 03059_ C-30 ARC bursts open, deploying its payload. 03059_ G-47 Trooper unfolds itself. 03059_ L-31 Rogue unfolds itself. 03059_ I-25 Savior unfolds itself. 03060_ Critical hit (Burn: +37). 03068_ G-34 Mercenary destroyed. 03071_ K-01 Serf collects debris. 03074_ Rocket Launcher destroyed. 03074_ Destroyed Rocket Launcher. 03075_ Aluminum Leg destroyed. 03077_ K-01 Serf collects debris. 03077_ Aluminum Leg destroyed. 03078_ Imp. Ion Engine destroyed. 03081_ K-01 Serf collects debris. 03081_ Destroyed Melee Analysis Suite. 03082_ Aluminum Leg destroyed. 03083_ Lgt. Treads destroyed. 03083_ Critical hit (Burn: +37). 03087_ K-01 Serf collects debris. Map ----- +----------------------------------------------------+ | # #???????????????????????????????????? | | / # ] +???????????????????????????????????? | | # #???????????????????????????????????? | | # """ """ #???????????????????????????????????? | | # " """?????????????????????????????????????? | | #%= " " #???????????????????????????????????? | | * #???????????????????????????????????? | | ** ?????????????????????????????????? | | % [ ???????????????????????????????? | | = % ???????? ?????????????????????? | | = ???????? ?????????????????????? | | ???????? ?????????????????????? | | ]! ### # # ????????? ?????????????????????? | | !% #????????? ?????????????????????? | | % #????????? ?????????????????????? | | # #????????? ?????????????????????? | | # #????????# #????????????????????? | | # # #????????# +????????????????????? | | ## """# ########## #????????????????????? | | ## [ "" # # # #????????????????????? | | ### """# # """ # #????????????????????? | | + """# # """ # #????????????????????? | | ### " + """ # ######+??????????????? | | #?# # # ^ #?????????????? | | #####?# # # " ###### ???????? | | ??????# # #=T @ ##???????????????????? | | ??????### # # # " l #???????????????????? | | ????????# # #! #??????????????????? | | ????????### # ##+## #?????????????????? | | ??????????#### #### gg ##?????????????????? | | ?????????????# #??## ig* #??????????????????? | | ####?????????# #???#k g ??????????????????? | | #?????????# #???## ?????????????????? | | #???????####+#####????## +???????????????? | | #???????# #?????# /! #???????????????? | | #???????# #?????# /! #???????????????? | | #???????# #?????# !! #???????????????? | | #???????# """ #?????#####+##???????????????? | | ####???????# """"" #??????????%#????????????????? | | ???????????# """"" #??????????/#????????????????? | | ???????????# """"" #??????????? ????????????????? | | ???????????# """ #??????????? ????????????????? | | ???????????# #????????????+???????????????? | | ???????????##########????????????????????????????? | | #????????????????????????????????????????????????? | | #????????????????????????????????????????????????? | | #????????????????????????????????????????????????? | | #????????????????????????????????????????????????? | | #????????????????????????????????????????????????? | | ?????????????????????????????????????????????????? | +----------------------------------------------------+ Best States ------------- Heat Dissipation 35 Energy Generation 14 Energy Capacity 265 Matter Stores 300 Matter Capacity 300 Sight Range 16 Terrain Scan Range 14 Terrain Scan Density 10 Evasion (%) 55 Item Schematics ----------------- None Robot Schematics ------------------ None Fabricated ------------ Nothing Alien Tech Used ----------------- None Achievements -------------- Loot Pinata Remodeling Shopping List Significant Disruption Challenges ------------ None Game ------ Seed MetafiberCentriumClaws Manual? 0 Play Time 00:50:35 Cumulative 5.6 hours Start 2025.03.26 @ 13:11:24 End 2025.03.26 @ 14:06:10 Sessions 1 Manual Loads 0 Difficulty Rogue Special Mode None Game No. 8 Rogue 8 Adventurer 0 Explorer 0 Win Type - Total 0 Types 0/0/0/0/0/0/0/0/0 Lore% 4 Gallery% 6 Achievement% 8 Wizard Run 0 Options --------- Layout 0 ASCII 1 Keyboard 1 Movement Arrows Keybinds 0 Fullscreen 2 Font 24/Smallcaps Map View 76x50 Zoom Use 0% Tactical HUD 1 Map Filters NONE Filters NONE Steam 1 RUN: 23ca9b77-4efe-493b-986b-20094021476d